bitfinex/quotes_SOLUSD_20250706
["timestamp","ask_amount","ask_price","bid_price","bid_amount"]
[1751837810127,10.72083462,153.41,153.37,6.52017995]
[1751837810424,10.72083462,153.4,153.37,6.52017995]
[1751837810633,163.23775132,153.45,153.37,6.52017995]
[1751837810810,7.29330452,153.44,153.37,6.52017995]
[1751837811009,7.29330452,153.44,153.41,0.03]
[1751837811425,10.72083462,153.42,153.41,0.03]
[1751837811812,29.37048348,153.42,153.41,0.03]
[1751837812406,35.88853849,153.42,153.41,0.03]
[1751837812627,77.25949526,153.42,153.35,0.03]
[1751837812828,10.72083462,153.36,153.35,0.03]
[1751837813014,31.42083462,153.36,153.35,0.03]
[1751837813849,43.65976924,153.36,153.35,0.03]
[1751837814328,32.93893462,153.36,153.35,0.03]
[1751837814522,68.83002321,153.36,153.35,0.03]
[1751837814721,18.64964886,153.35,153.26,6.62481489]
[1751837815040,51.31903973,153.36,153.26,6.62481489]
[1751837815247,10.72083462,153.31,153.26,6.62481489]
[1751837815537,10.72083462,153.32,153.26,17.34564951]
[1751837815749,20.68,153.34,153.28,10.72083462]
[1751837815905,20.68,153.34,153.29,10.72083462]
[1751837816111,20.68,153.34,153.3,10.72083462]
[1751837816808,20.68,153.34,153.31,6.52273172]
[1751837817427,20.68,153.34,153.28,6.52400835]
[1751837817733,20.68,153.34,153.29,10.72083462]
[1751837818310,20.68,153.35,153.3,10.72083462]
[1751837818723,20.68,153.35,153.31,6.52273172]
[1751837819114,32.51959854,153.39,153.31,17.24356634]
[1751837819315,20.68,153.38,153.31,6.52273172]
[1751837819512,10.72083462,153.35,153.31,6.52273172]
[1751837819716,10.72083462,153.34,153.3,6.5231572]
[1751837820736,10.72083462,153.32,153.27,6.52432544]
[1751837821033,20.68,153.32,153.28,10.72083462]
[1751837821729,20.68,153.32,153.3,6.5231572]
[1751837822227,146.0,153.36,153.3,6.5231572]
[1751837822228,156.72083462,153.36,153.3,6.5231572]
[1751837822434,20.66,153.35,153.3,17.24399182]
[1751837822936,20.66,153.35,153.31,10.72083462]
[1751837823126,1.6182,153.39,153.34,10.72083462]
[1751837823434,20.66,153.38,153.33,10.72083462]
[1751837823929,6.51898821,153.4,153.33,10.72083462]
[1751837823930,1.5627,153.43,153.36,10.72083462]
[1751837824129,20.66,153.42,153.37,10.72083462]
[1751837824322,12.28353462,153.43,153.37,10.72083462]
[1751837824523,20.66,153.42,153.37,10.72083462]
[1751837824708,31.38083462,153.42,153.37,10.72083462]
[1751837824910,10.72083462,153.42,153.33,33.06838809]
[1751837825131,31.38083462,153.43,153.37,10.72083462]
[1751837825314,10.72083462,153.43,153.38,10.72083462]
[1751837825516,10.72083462,153.43,153.33,33.06838809]
[1751837825748,10.72083462,153.43,153.38,10.72083462]
[1751837825942,31.36083462,153.43,153.39,6.51932981]
[1751837826145,10.72083462,153.42,153.37,6.51983112]
[1751837826344,10.72083462,153.42,153.37,17.24066574]
[1751837827250,31.36083462,153.43,153.37,17.24066574]
[1751837827417,31.36083462,153.43,153.35,16.30190244]
[1751837827741,31.36083462,153.43,153.37,10.72083462]
[1751837828042,10.72083462,153.42,153.37,10.72083462]
[1751837828937,10.72083462,153.42,153.35,16.30190244]
[1751837829241,10.72083462,153.42,153.37,6.52017995]
[1751837830528,20.64,153.44,153.37,6.52017995]
[1751837830719,10.72083462,153.41,153.37,6.52017995]
[1751837830918,10.72083462,153.42,153.37,6.52017995]
[1751837831941,31.34083462,153.42,153.37,6.52017995]
[1751837832118,10.72083462,153.41,153.37,6.52017995]
[1751837832318,10.72083462,153.4,153.35,10.72083462]
[1751837832733,10.72083462,153.41,153.35,10.72083462]
[1751837833141,20.62,153.42,153.35,10.72083462]
[1751837833324,10.72083462,153.41,153.36,10.72083462]
[1751837834442,10.72083462,153.41,153.37,6.52017995]
[1751837835223,10.72083462,153.4,153.37,6.52017995]
[1751837835422,10.72083462,153.4,153.35,17.24186494]
[1751837836030,10.72083462,153.39,153.35,6.52103032]
[1751837836227,10.72083462,153.37,153.34,6.52139056]
[1751837836936,10.72083462,153.37,153.32,18.86085227]
[1751837837844,10.72083462,153.37,153.32,8.14001765]
[1751837838050,36.95536594,153.42,153.32,6.52191765]
[1751837838051,10.72083462,153.35,153.32,6.52191765]
[1751837838435,10.72083462,153.35,153.3,6.5231572]
[1751837838742,10.72083462,153.34,153.3,6.5231572]
[1751837838932,10.72083462,153.33,153.3,6.5231572]
[1751837839126,27.12068641,153.36,153.3,6.5231572]
[1751837839341,10.72083462,153.32,153.3,6.5231572]
[1751837839848,10.72083462,153.31,153.28,0.03]
[1751837840045,10.72083462,153.29,153.28,0.03]
[1751837840246,43.42219919,153.36,153.28,0.03]
[1751837840432,10.72083462,153.29,153.28,0.03]
[1751837840836,6.52236871,153.32,153.28,0.03]
[1751837841039,10.72083462,153.29,153.28,0.03]
[1751837842446,20.58,153.3,153.28,0.03]
[1751837843639,31.30083462,153.3,153.28,0.03]
[1751837843831,10.72083462,153.3,153.28,0.03]
[1751837844248,20.58,153.33,153.28,0.03]
[1751837844433,10.72083462,153.32,153.28,0.03]
[1751837845453,10.72083462,153.31,153.28,0.03]
[1751837845951,39.20964886,153.35,153.28,0.03]
[1751837846258,10.72083462,153.31,153.28,0.03]
[1751837846557,10.72083462,153.32,153.28,0.03]
[1751837847440,10.72083462,153.32,153.28,6.55400835]
[1751837848252,10.72083462,153.31,153.28,6.55400835]
[1751837848554,10.72083462,153.3,153.28,6.55400835]
[1751837848749,45.73070572,153.35,153.28,6.55400835]
[1751837849066,10.72083462,153.31,153.28,6.55400835]
[1751837849553,10.72083462,153.31,153.28,0.03]
[1751837850127,6.52156609,153.34,153.28,0.03]
[1751837850457,10.72083462,153.3,153.28,0.03]
[1751837851739,6.52234297,153.32,153.28,0.03]
[1751837851944,25.17160267,153.33,153.28,0.03]
[1751837852137,10.72083462,153.29,153.28,0.03]
[1751837853433,20.54,153.3,153.28,0.03]
[1751837853643,10.72083462,153.29,153.28,0.03]
[1751837853955,29.37048348,153.29,153.28,0.03]
[1751837854660,18.64964886,153.29,153.28,0.03]
[1751837854852,29.37048348,153.29,153.28,0.03]
[1751837855152,35.89406623,153.29,153.28,0.03]
[1751837856135,43.1779871,153.29,153.28,0.03]
[1751837856453,44.64964886,153.27,153.26,0.1]
[1751837856649,66.0913181,153.27,153.26,0.1]
[1751837857160,72.6157521,153.27,153.26,0.1]
[1751837858037,18.64964886,153.22,153.19,0.1]
[1751837858240,26.0,153.23,153.19,0.1]
[1751837858241,29.37048348,153.2,153.19,0.1]
[1751837859362,35.89789862,153.2,153.19,0.1]
[1751837860364,51.177064,153.2,153.19,0.1]
[1751837860557,61.89789862,153.2,153.19,0.1]
[1751837861364,44.64964886,153.2,153.19,0.1]
[1751837861661,31.22083462,153.21,153.19,0.1]
[1751837861844,10.72083462,153.2,153.19,0.1]
[1751837862164,20.5,153.21,153.19,0.1]
[1751837862353,10.72083462,153.2,153.19,0.1]
[1751837864064,29.37048348,153.2,153.19,0.1]
[1751837864352,35.89789862,153.2,153.19,0.1]
[1751837864561,78.91463324,153.2,153.18,0.03]
[1751837864869,21.44166924,153.19,153.18,0.03]
[1751837865153,40.0913181,153.19,153.18,0.03]
[1751837865358,18.64964886,153.18,153.12,0.1]
[1751837865563,18.64964886,153.16,153.12,0.1]
[1751837865739,10.72083462,153.13,153.12,0.1]
[1751837866399,10.72083462,153.14,153.12,6.63082549]
[1751837866865,10.72083462,153.13,153.12,0.1]
[1751837867358,10.72083462,153.14,153.12,6.63082549]
[1751837867561,10.72083462,153.13,153.12,6.63082549]
[1751837868758,10.72083462,153.13,153.12,0.1]
[1751837870046,29.37048348,153.13,153.12,0.1]
[1751837870354,18.64964886,153.13,153.12,0.1]
[1751837870550,29.37048348,153.13,153.12,0.1]
[1751837871645,35.90088248,153.13,153.12,0.1]
[1751837871864,18.64964886,153.12,153.05,6.53371369]
[1751837872050,10.72083462,153.06,153.05,6.53371369]
[1751837872244,10.72083462,153.07,153.05,6.53371369]
[1751837872866,10.72083462,153.07,153.04,6.53423941]
[1751837873045,10.72083462,153.06,153.04,6.53423941]
[1751837873659,20.48,153.09,153.04,6.53423941]
[1751837874157,10.72083462,153.07,153.04,6.53423941]
[1751837875377,18.64964886,153.13,153.04,6.53423941]
[1751837875687,10.72083462,153.08,153.04,6.53423941]
[1751837876038,10.72083462,153.07,153.04,6.53423941]
[1751837876758,10.72083462,153.08,153.04,6.53423941]
[1751837876966,18.64964886,153.11,153.04,22.86983794]
[1751837877271,10.72083462,153.08,153.04,22.86983794]
[1751837878765,18.64964886,153.11,153.04,22.86983794]
[1751837878766,10.72083462,153.07,153.04,22.86983794]
[1751837879553,10.72083462,153.07,153.04,6.53423941]
[1751837880372,10.72083462,153.05,153.03,6.56461785]
[1751837880863,0.06,153.18,153.04,23.04286924]
[1751837881067,0.06,153.18,153.14,10.72083462]
[1751837881238,0.06,153.18,153.16,10.72083462]
[1751837881641,0.06,153.18,153.17,10.72083462]
[1751837882646,0.06,153.18,153.17,17.24952822]
[1751837883760,0.06,153.18,153.16,6.52911987]
[1751837884071,0.06,153.18,153.17,10.72083462]
[1751837884942,0.06,153.18,153.16,6.52911987]
[1751837885369,0.06,153.18,153.17,10.72083462]
[1751837885558,0.06,153.18,153.16,6.52911987]
[1751837885864,10.78083462,153.18,153.15,32.52951156]
[1751837886049,0.06,153.18,153.15,32.52951156]
[1751837886369,0.06,153.18,153.15,26.0]
[1751837886569,10.78083462,153.18,153.14,6.52994631]
[1751837887065,0.06,153.18,153.14,17.25078093]
[1751837887567,0.06,153.18,153.14,6.52994631]
[1751837887973,0.06,153.18,153.13,6.53033522]
[1751837888270,10.72083462,153.16,153.13,6.53033522]
[1751837889166,18.70964886,153.18,153.13,6.53033522]
[1751837889351,10.72083462,153.16,153.11,17.25208666]
[1751837889752,10.72083462,153.14,153.1,6.53166296]
[1751837889968,10.72083462,153.13,153.1,6.53166296]
[1751837890381,10.72083462,153.12,153.07,10.72083462]
[1751837891259,10.72083462,153.12,153.08,6.532532]
[1751837891470,10.72083462,153.13,153.08,6.532532]
[1751837892172,10.72083462,153.12,153.08,6.532532]
[1751837893277,10.72083462,153.12,153.07,27.05277935]
[1751837893278,10.72083462,153.12,153.07,22.8649035]
[1751837893487,10.72083462,153.12,153.07,33.58573812]
[1751837894668,10.72083462,153.12,153.07,6.53295877]
[1751837894891,18.64964886,153.13,153.07,6.53295877]
[1751837895071,26.0,153.14,153.07,6.53295877]
[1751837895246,26.0,153.14,153.08,10.72083462]
[1751837895445,10.72083462,153.13,153.07,6.53295877]
[1751837895672,10.72083462,153.12,153.07,17.25379339]
[1751837895872,10.72083462,153.12,153.07,6.53295877]
[1751837896259,10.72083462,153.12,153.07,17.25379339]
[1751837896448,10.72083462,153.12,153.07,10.72083462]
[1751837896652,10.72083462,153.11,153.06,33.58704966]
[1751837896977,10.72083462,153.12,153.06,33.58704966]
[1751837897273,10.72083462,153.12,153.07,10.72083462]
[1751837897647,10.72083462,153.12,153.06,22.86621504]
[1751837898066,10.72083462,153.12,153.06,33.58704966]
[1751837898273,10.72083462,153.12,153.06,22.86621504]
[1751837898458,10.72083462,153.12,153.06,33.58704966]
[1751837899773,10.72083462,153.12,153.06,22.86621504]
[1751837900070,10.72083462,153.11,153.06,22.86621504]
[1751837900258,10.72083462,153.11,153.06,33.58704966]
[1751837900753,10.72083462,153.11,153.06,22.86621504]
[1751837900949,10.72083462,153.11,153.06,33.58704966]
[1751837901272,10.72083462,153.11,153.06,22.89621504]
[1751837901665,10.72083462,153.1,153.06,22.89621504]
[1751837902254,10.72083462,153.1,153.06,6.5633856]
[1751837904174,10.72083462,153.09,153.06,6.5633856]
[1751837904349,25.18063687,153.12,153.06,6.5633856]
[1751837905081,10.72083462,153.09,153.06,6.5633856]
[1751837905256,10.72083462,153.08,153.06,0.03]
[1751837905973,10.72083462,153.09,153.06,0.03]
[1751837906178,10.72083462,153.08,153.06,0.03]
[1751837906560,10.72083462,153.09,153.06,0.03]
[1751837907366,10.72083462,153.08,153.06,0.03]
[1751837907580,10.72083462,153.07,153.06,0.03]
[1751837907873,25.18123468,153.11,153.06,0.03]
[1751837907874,10.72083462,153.08,153.06,0.03]
[1751837908081,10.72083462,153.07,153.06,0.03]
[1751837908878,7.18105569,153.07,153.06,0.03]
[1751837909093,25.83070455,153.07,153.06,0.03]
[1751837910659,32.36366332,153.07,153.06,0.03]
[1751837910958,37.5315466,153.07,153.06,0.03]
[1751837911980,43.8508466,153.07,153.06,0.03]
[1751837912762,33.07490763,153.07,153.06,0.03]
[1751837912973,51.39858783,153.07,153.06,0.03]
[1751837913188,57.9315466,153.07,153.06,0.03]
[1751837919482,20.22264886,153.07,153.06,0.03]
[1751837919791,57.9115466,153.07,153.06,0.03]
[1751837920082,18.64964886,153.07,153.06,0.03]
[1751837920283,29.42558783,153.07,153.06,0.03]
[1751837920487,56.3385466,153.07,153.06,0.03]
[1751837921385,82.3385466,153.07,153.06,0.03]
[1751837922985,82.3385466,153.07,153.03,0.03]
[1751837922986,46.20894886,153.04,153.03,0.03]
[1751837923193,18.64964886,153.03,153.02,0.1]
[1751837923386,36.77593897,153.01,153.0,0.03]
[1751837923583,86.5815268,153.01,153.0,0.03]
[1751837923774,18.64964886,153.0,152.96,0.03]
[1751837923971,29.42558783,152.97,152.96,0.03]
[1751837924289,49.80558783,152.97,152.96,0.03]
[1751837924869,56.34281735,152.97,152.96,0.03]
[1751837925275,49.80558783,152.97,152.96,0.03]
[1751837925798,10.62,153.02,152.96,0.03]
[1751837926001,10.77593897,152.99,152.96,0.03]
[1751837926168,31.15593897,152.99,152.96,0.03]
[1751837926369,20.38,152.98,152.96,0.03]
[1751837926581,31.15593897,152.98,152.96,0.03]
[1751837926787,10.77593897,152.97,152.96,0.03]
[1751837927188,29.42558783,152.97,152.96,0.03]
[1751837927874,35.96281735,152.97,152.96,0.03]
[1751837928288,18.64964886,152.96,152.9,0.1]
[1751837928475,18.64964886,152.94,152.9,0.1]
[1751837928682,31.15593897,152.93,152.9,6.6399069]
[1751837928870,20.38,152.92,152.9,6.6399069]
[1751837929070,20.38,152.93,152.9,17.41584587]
[1751837929270,20.38,152.97,152.92,10.77593897]
[1751837929491,6.5343387,153.04,152.92,26.0]
[1751837929688,10.77593897,153.03,152.97,10.77593897]
[1751837929887,20.36,153.03,152.98,10.77593897]
[1751837930075,26.0,153.05,152.97,10.77593897]
[1751837930277,10.77593897,153.03,152.98,10.77593897]
[1751837930471,31.13593897,153.03,152.98,10.77593897]
[1751837931072,18.64964886,153.08,152.99,23.34341389]
[1751837931387,10.77593897,153.05,153.0,10.77593897]
[1751837931794,20.36,153.04,153.0,10.77593897]
[1751837932290,10.77593897,153.05,153.01,6.53552055]
[1751837932490,31.13593897,153.04,153.01,6.53552055]
[1751837932792,20.36,153.04,153.01,6.53552055]
[1751837933088,10.77593897,153.09,153.03,10.77593897]
[1751837933270,20.36,153.07,153.02,10.77593897]
[1751837933924,31.13593897,153.07,153.01,6.53552055]
[1751837934078,0.06,153.12,153.04,10.77593897]
[1751837934278,10.77593897,153.09,153.04,10.77593897]
[1751837934477,10.77593897,153.09,153.03,1.6139]
[1751837934696,20.36,153.08,153.03,1.6139]
[1751837934891,20.36,153.08,153.03,12.38983897]
[1751837935097,10.77593897,153.09,153.03,12.38983897]
[1751837935294,20.36,153.08,153.03,12.38983897]
[1751837935893,20.36,153.08,153.04,6.53423941]
[1751837936193,10.77593897,153.1,153.04,17.31017838]
[1751837936497,10.77593897,153.1,153.04,33.64577691]
[1751837936697,20.36,153.09,153.04,33.64577691]
[1751837936895,20.36,153.09,153.05,10.77593897]
[1751837938000,20.36,153.09,153.06,6.5333856]
[1751837938390,10.77593897,153.1,153.06,6.5333856]
[1751837938391,31.13593897,153.1,153.06,6.5333856]
[1751837938700,10.77593897,153.09,153.06,6.5333856]
[1751837939289,31.13593897,153.09,153.04,6.53423941]
[1751837939491,10.77593897,153.08,153.04,6.53423941]
[1751837939873,31.13593897,153.09,153.04,17.31017838]
[1751837940497,20.36,153.09,153.04,6.53423941]
[1751837940708,20.36,153.09,153.05,10.77593897]
[1751837940876,27.51771695,153.09,153.04,6.53423941]
[1751837941071,27.51771695,153.09,153.04,13.71195636]
[1751837941896,7.17771695,153.09,153.04,6.53423941]
[1751837942198,20.34,153.1,153.06,7.17771695]
[1751837942396,0.06,153.12,153.07,13.27011695]
[1751837942397,7.23771695,153.12,153.07,13.27011695]
[1751837942795,27.57771695,153.12,153.07,13.27011695]
[1751837942981,20.4,153.12,153.07,13.27011695]
[1751837943178,46.4,153.12,153.04,13.71167409]
[1751837943380,7.17771695,153.1,153.04,22.86955567]
[1751837943615,7.17771695,153.09,153.04,30.04727262]
[1751837943778,20.4,153.12,153.04,30.04727262]
[1751837943985,7.17771695,153.09,153.04,30.04727262]
[1751837946706,20.4,153.12,153.04,22.86955567]
[1751837946894,7.17771695,153.09,153.04,30.04727262]
[1751837947098,0.06,153.12,153.11,26.0]
[1751837947394,0.06,153.12,153.1,8.76501695]
[1751837948104,0.06,153.12,153.11,7.17771695]
[1751837948304,0.06,153.12,153.11,6.53125204]
[1751837949998,7.23771695,153.12,153.11,6.53125204]
[1751837950394,7.23771695,153.12,153.1,6.53167864]
[1751837950599,0.06,153.12,153.1,6.53167864]
[1751837951706,0.06,153.12,153.08,22.86370716]
[1751837951907,7.23771695,153.12,153.08,48.86370716]
[1751837953205,7.17771695,153.11,153.08,22.86370716]
[1751837953402,7.17771695,153.1,153.08,6.532532]
[1751837953986,7.17771695,153.11,153.07,6.53295877]
[1751837954216,7.17771695,153.11,153.07,22.86535571]
[1751837954714,0.06,153.12,153.07,22.86535571]
[1751837955012,0.06,153.12,153.09,7.17771695]
[1751837955684,0.06,153.12,153.1,7.17771695]
[1751837956895,0.06,153.12,153.1,10.75820274]
[1751837957300,0.06,153.14,153.07,55.53014959]
[1751837957301,0.06,153.14,153.11,10.75820274]
[1751837957501,0.06,153.14,153.12,10.75820274]
[1751837957805,0.06,153.14,153.13,10.75820274]
[1751837958008,0.06,153.14,153.13,17.28860174]
[1751837958202,0.06,153.18,153.13,33.61459925]
[1751837958517,0.06,153.18,153.15,10.75820274]
[1751837959107,0.06,153.18,153.14,6.5478]
[1751837959313,0.06,153.18,153.15,10.75820274]
[1751837959815,0.06,153.18,153.14,6.5478]
[1751837960008,0.06,153.18,153.14,17.30600274]
[1751837960191,0.06,153.18,153.15,22.85341168]
[1751837961300,0.06,153.18,153.15,33.61161442]
[1751837961998,0.06,153.18,153.15,22.85341168]
[1751837962615,0.06,153.18,153.15,6.52954619]
[1751837962818,10.81820274,153.18,153.15,6.52954619]
[1751837963405,10.75820274,153.16,153.13,6.530399]
[1751837964810,10.75820274,153.17,153.13,6.530399]
[1751837965117,0.06,153.18,153.13,6.530399]
[1751837965323,10.75820274,153.16,153.13,6.530399]
[1751837965621,10.75820274,153.16,153.12,6.53082549]
[1751837966118,10.75820274,153.13,153.1,6.53167864]
[1751837966321,10.75820274,153.11,153.07,6.53295877]
[1751837966623,197.17864151,153.17,153.07,6.53295877]
[1751837966624,10.75820274,153.1,153.07,6.53295877]
[1751837966802,10.75820274,153.11,153.07,6.53295877]
[1751837967205,10.75820274,153.1,153.07,6.53295877]
[1751837967400,10.75820274,153.08,153.02,27.09515547]
[1751837967818,10.75820274,153.07,153.02,16.33695273]
[1751837968024,10.75820274,153.06,153.02,16.33695273]
[1751837968401,10.75820274,153.06,153.0,17.42270274]
[1751837968603,51.18094874,153.11,153.01,33.63252467]
[1751837968817,10.75820274,153.07,153.02,10.75820274]
[1751837969426,10.75820274,153.1,153.05,10.75820274]
[1751837969602,1.5184,153.16,153.06,6.5333856]
[1751837969803,10.75820274,153.14,153.08,10.75820274]
[1751837970118,19.26,153.15,153.09,10.75820274]
[1751837970307,38.90964886,153.17,153.11,10.75820274]
[1751837970508,0.06,153.18,153.14,10.75820274]
[1751837970739,0.06,153.18,153.17,10.75820274]
[1751837971630,0.06,153.18,153.17,17.28689634]
[1751837972003,0.06,153.18,153.17,6.5286936]
[1751837972220,0.06,153.18,153.17,17.28689634]
[1751837972428,0.06,153.18,153.17,6.5286936]
[1751837972920,0.06,153.18,153.17,17.28689634]
[1751837974326,0.06,153.18,153.17,6.5286936]
[1751837975126,0.06,153.18,153.17,17.28689634]
[1751837977128,0.06,153.18,153.17,6.5286936]
[1751837977312,0.06,153.18,153.17,17.28689634]
[1751837977514,0.06,153.18,153.17,6.5286936]
[1751837977709,0.06,153.18,153.17,17.28689634]
[1751837980736,0.06,153.18,153.17,6.5286936]
[1751837981119,0.06,153.18,153.16,17.28732261]
[1751837981314,0.06,153.18,153.16,6.52911987]
[1751837982333,0.06,153.18,153.16,17.28732261]
[1751837983127,0.06,153.18,153.17,10.75820274]
[1751837983535,0.06,153.18,153.14,16.32445518]
[1751837983728,0.06,153.18,153.17,10.75820274]
[1751837985421,0.06,153.18,153.17,17.28689634]
[1751837985817,0.06,153.18,153.17,6.5286936]
[1751837987714,0.06,153.18,153.15,33.61161442]
[1751837988134,0.06,153.18,153.15,22.85341168]
[1751837988444,0.06,153.18,153.15,33.61161442]
[1751837988827,0.06,153.18,153.17,10.75820274]
[1751837989133,10.95820274,153.25,153.17,10.75820274]
[1751837989332,10.95820274,153.25,153.19,10.75820274]
[1751837989838,10.95820274,153.25,153.2,6.52741514]
[1751837991353,0.2,153.25,153.2,22.84595299]
[1751837991561,0.2,153.25,153.2,33.60415573]
[1751837992217,0.2,153.25,153.2,22.84595299]
[1751837992422,0.2,153.25,153.2,33.60415573]
[1751837992645,0.2,153.28,153.2,55.4830287]
[1751837992823,0.2,153.28,153.27,10.75820274]
[1751837993256,0.2,153.28,153.24,0.65257113]
[1751837993457,0.2,153.28,153.27,17.28263674]
[1751837994233,0.2,153.3,153.27,17.28263674]
[1751837994527,0.2,153.3,153.29,10.75820274]
[1751837995532,0.2,153.3,153.29,6.52358275]
[1751837995729,0.2,153.3,153.29,17.28178549]
[1751837996246,0.2,153.3,153.29,6.52358275]
[1751837996456,0.2,153.3,153.29,17.28178549]
[1751837997038,0.2,153.3,153.29,6.52358275]
[1751837998138,0.2,153.3,153.28,6.52391542]
[1751837998863,0.2,153.3,153.29,10.75820274]
[1751837999437,0.2,153.3,153.28,6.52391542]
[1751837999758,0.2,153.3,153.29,10.75820274]
[1751838000064,0.2,153.3,153.28,26.0]
[1751838000269,10.75820274,153.29,153.19,6.4647]
[1751838000435,26.0,153.27,153.18,6.52826739]
[1751838000629,26.0,153.27,153.19,10.75820274]
[1751838000933,10.75820274,153.24,153.19,10.75820274]
[1751838001154,10.75820274,153.25,153.19,10.75820274]
[1751838001362,10.75820274,153.24,153.18,17.28647013]
[1751838001649,10.75820274,153.23,153.18,6.52826739]
[1751838001858,10.75820274,153.24,153.18,17.28647013]
[1751838002043,10.75820274,153.24,153.19,10.75820274]
[1751838002232,10.75820274,153.25,153.18,22.84893588]
[1751838002434,10.75820274,153.25,153.19,10.75820274]
[1751838002642,10.75820274,153.24,153.19,10.75820274]
[1751838003052,10.75820274,153.24,153.18,22.84893588]
[1751838003243,10.75820274,153.23,153.18,22.84893588]
[1751838004064,10.75820274,153.23,153.18,33.60713862]
[1751838004256,10.75820274,153.23,153.18,22.84893588]
[1751838004442,32.52448419,153.27,153.18,22.84893588]
[1751838004641,10.75820274,153.24,153.18,33.60713862]
[1751838005058,10.75820274,153.23,153.18,22.84893588]
[1751838005242,43.28268693,153.27,153.18,33.60713862]
[1751838005442,10.75820274,153.24,153.18,33.60713862]
[1751838005743,10.75820274,153.24,153.18,22.84893588]
[1751838005937,10.75820274,153.24,153.18,33.60713862]
[1751838006957,10.75820274,153.24,153.18,22.84893588]
[1751838007137,10.75820274,153.24,153.18,33.60713862]
[1751838008659,32.52446239,153.27,153.18,33.60713862]
[1751838008858,10.75820274,153.23,153.18,22.84893588]
[1751838009165,10.75820274,153.22,153.18,6.52826739]
[1751838009365,10.75820274,153.23,153.18,17.28647013]
[1751838010450,32.52448653,153.27,153.18,6.52826739]
[1751838010658,10.75820274,153.24,153.19,10.75820274]
[1751838010861,46.14,153.27,153.2,10.75820274]
[1751838011060,10.75820274,153.26,153.21,10.75820274]
[1751838011246,146.2,153.3,153.24,10.75820274]
[1751838011461,10.95820274,153.3,153.25,10.75820274]
[1751838011651,10.75820274,153.29,153.24,10.75820274]
[1751838011963,0.2,153.3,153.22,26.0]
[1751838012163,10.75820274,153.29,153.23,10.75820274]
[1751838012558,0.2,153.3,153.24,6.5257113]
[1751838012739,10.75820274,153.29,153.24,6.5257113]
[1751838012939,10.75820274,153.29,153.24,17.28391404]
[1751838013140,0.2,153.3,153.24,6.5257113]
[1751838013347,10.75820274,153.29,153.24,6.5257113]
[1751838013766,0.2,153.3,153.24,6.5257113]
[1751838013948,10.75820274,153.29,153.24,6.5257113]
[1751838014265,0.2,153.3,153.24,6.5257113]
[1751838014668,0.2,153.3,153.23,6.52613717]
[1751838014872,10.75820274,153.28,153.23,6.52613717]
[1751838015449,0.2,153.3,153.23,33.59968285]
[1751838015670,10.75820274,153.28,153.23,33.59968285]
[1751838015969,10.75820274,153.27,153.23,6.52613717]
[1751838016144,10.75820274,153.27,153.23,22.84148011]
[1751838016501,10.75820274,153.27,153.23,6.52613717]
[1751838016651,0.06,153.29,153.23,6.52613717]
[1751838016852,10.75820274,153.28,153.23,22.84148011]
[1751838017262,6.58364547,153.29,153.22,6.52645018]
[1751838017475,10.75820274,153.23,153.21,26.0]
[1751838017767,10.75820274,153.24,153.21,26.0]
[1751838017982,10.75820274,153.24,153.18,36.78820274]
[1751838018162,10.75820274,153.27,153.18,10.78820274]
[1751838018374,10.75820274,153.21,153.19,6.52784124]
[1751838018758,10.75820274,153.21,153.18,0.03]
[1751838019065,10.75820274,153.22,153.18,0.03]
[1751838019364,1.5183,153.24,153.18,0.03]
[1751838019569,10.75820274,153.22,153.18,0.03]
[1751838020876,10.75820274,153.21,153.18,0.03]
[1751838021055,1.5183,153.24,153.18,0.03]
[1751838021254,10.75820274,153.22,153.18,0.03]
[1751838021486,10.75820274,153.23,153.18,10.78820274]
[1751838021685,1.5183,153.24,153.18,10.78820274]
[1751838021893,1.5183,153.24,153.18,0.03]
[1751838022061,10.75820274,153.23,153.18,0.03]
[1751838022256,10.75820274,153.23,153.18,10.78820274]
[1751838022486,18.64964886,153.27,153.18,0.03]
[1751838022487,18.64964886,153.26,153.18,0.03]
[1751838022656,1.631,153.28,153.18,0.03]
[1751838022850,10.75820274,153.27,153.21,10.75820274]
[1751838023055,50.96324886,153.29,153.21,1.5339]
[1751838023056,0.06,153.29,153.21,1.5339]